{"text_format":"1","workbook":"xlsx","n_sheets":2,"sheets":["012020","022020"],"not_rendered":{"charts":0,"images":1,"macros":1,"external_links":0,"defined_names":0,"comments":0,"pivot_tables":0},"unopened":[],"bounds":{"document_bytes":16777216,"sheet_cells":100000,"rows_first":2000,"rows_last":500,"rows_between":2000,"halvings":0,"cell_chars":16384,"cell_head_chars":4096},"cells_cut":0,"cells_raw":0,"read":"whole","date_system":"1900"}

{"sheet":"012020","index":0,"n_rows":18,"n_cols":7,"rows_kept":18,"cut":false,"hidden":false,"merged":[[0,0,0,6]]}
["W W W . I N F I N I T I T E C N O L O G I A . C O M . B R / P L A N I L H AS - P A R A - C O N T A D O R E S"]
[]
["RELAÇÃO DE FUNCIONÁRIOS",null,null,"2020-02-01"]
[]
["FUNCIONÁRIO","SETOR","SALÁRIO","QTDE FALTAS","% COMISSÃO","VALOR DA COMISSÃO","SITUAÇÃO"]
["JOÃO",null,4085,5,2,{"$f":"C6*E6/100","v":81.7}]
["PEDRO",null,2234,2,3,{"$f":"C7*E7/100","v":67.02}]
["MIGUEL",null,2112,3,8,168.96]
["JULIANA",null,4115,1,5,205.75]
["BRENDA",null,3150,6,9,283.5]
["RENATA",null,4444,3,4,177.76]
["DENISE",null,2039,4,9,183.51]
["HUGO",null,3931,4,7,275.17]
["RAFAEL",null,2479,4,5,123.95]
["LUCAS",null,3245,2,5,162.25]
["DOUGLAS",null,3671,7,4,146.84]
["DIEGO",null,2035,4,4,81.400000000000006]
["MURILO",null,3346,7,5,167.3]

{"sheet":"022020","index":1,"n_rows":18,"n_cols":7,"rows_kept":18,"cut":false,"hidden":false,"merged":[[0,0,0,6]]}
["W W W . I N F I N I T I T E C N O L O G I A . C O M . B R / P L A N I L H AS - P A R A - C O N T A D O R E S"]
[]
["RELAÇÃO DE FUNCIONÁRIOS",null,null,"2020-02-01"]
[]
["FUNCIONÁRIO","SETOR","SALÁRIO","QTDE FALTAS","% COMISSÃO","VALOR DA COMISSÃO","SITUAÇÃO"]
["JOÃO",null,4085,null,null,{"$f":"C6*E6/100","v":0}]
["PEDRO",null,2234,null,null,{"$f":"C7*E7/100","v":0}]
["MIGUEL",null,2112,null,null,0]
["JULIANA",null,4115,null,null,0]
["BRENDA",null,3150,null,null,0]
["RENATA",null,4444,null,null,0]
["DENISE",null,2039,null,null,0]
["HUGO",null,3931,null,null,0]
["RAFAEL",null,2479,null,null,0]
["LUCAS",null,3245,null,null,0]
["DOUGLAS",null,3671,null,null,0]
["DIEGO",null,2035,null,null,0]
["MURILO",null,3346,null,null,0]